lending/lending_fUSD_20250130
["ID","MTS","AMOUNT","RATE_DAILY","PERIOD"]
[350962932,1738251039233,-151.0,0.0002095,2]
[350962934,1738251039242,-151.0,0.0002095,2]
[350962936,1738251039252,-151.0,0.0002095,2]
[350962938,1738251039262,-151.0,0.0002095,2]
[350962940,1738251039272,-779.97338,0.0002095,2]
[350962942,1738251039282,-779.97338,0.0002095,2]
[350962944,1738251039291,-151.0,0.0002095,2]
[350962946,1738251039300,-151.0,0.0002095,2]
[350962948,1738251039310,-151.0,0.0002095,2]
[350962950,1738251039319,-225.435228,0.0002095,2]
[350962952,1738251039329,-7103.437396,0.0002095,2]
[350962954,1738251039338,-7103.437396,0.0002095,2]
[350962956,1738251039348,-254.919403,0.0002095,2]
[350962958,1738251039359,-254.919403,0.0002095,2]
[350962960,1738251039370,-165.219706,0.0002095,2]
[350962962,1738251039380,-222.495758,0.0002095,2]
[350962964,1738251039389,-222.495758,0.0002095,2]
[350962966,1738251039399,-151.0,0.0002095,2]
[350962968,1738251039409,-872.762683,0.0002095,2]
[350962970,1738251039419,-151.0,0.0002095,2]
[350962972,1738251039429,-872.762683,0.0002095,2]
[350962974,1738251039441,-245.798555,0.0002095,2]
[350962976,1738251039452,-151.0,0.0002095,2]
[350962978,1738251039463,-261.133667,0.0002095,2]
[350962980,1738251039473,-151.0,0.0002095,2]
[350962982,1738251039483,-151.0,0.0002095,2]
[350962984,1738251039495,-734.114043,0.0002095,2]
[350962986,1738251039511,-734.114043,0.0002095,2]
[350962988,1738251039520,-151.0,0.0002095,2]
[350962990,1738251039529,-478.809257,0.0002095,2]
[350962992,1738251039539,-862.538769,0.0002095,2]
[350962994,1738251039548,-478.809257,0.0002095,2]
[350962996,1738251039558,-862.538769,0.0002095,2]
[350962998,1738251039569,-221.782763,0.0002095,2]
[350962999,1738251039579,-221.782763,0.0002095,2]
[350963000,1738251039589,-170.92632,0.0002095,2]
[350963001,1738251039599,-1551.806154,0.0002095,2]
[350963002,1738251039609,-170.92632,0.0002095,2]
[350963003,1738251039619,-1551.806154,0.0002095,2]
[350963004,1738251039629,-457.088565,0.0002095,2]
[350963005,1738251039639,-457.088565,0.0002095,2]
[350963006,1738251039649,-3362.835488,0.0002095,2]
[350963007,1738251039658,-3362.835488,0.0002095,2]
[350963008,1738251039668,-151.0,0.0002095,2]
[350963009,1738251039677,-519.78348483,0.00020969,2]
[350963010,1738251039688,-239.61380109,0.00020973,2]
[350963011,1738251039697,-500.0,0.00020973,2]
[350963012,1738251039706,-500.0,0.00020973,2]
[350963013,1738251039716,-150.0,0.00020986,2]
[350963014,1738251039725,-1042.4369488,0.00020989,2]
[350963015,1738251039735,-8924.0554829,0.00020989,2]
[350963016,1738251039744,-1613.7699959,0.00020989,2]
[350963017,1738251039754,-5112.433394,0.0002099,2]
[350963018,1738251039765,-557.401547,0.0002099,2]
[350963019,1738251039774,-2347.907956,0.0002099,2]
[350963020,1738251039785,-5112.433394,0.0002099,2]
[350963021,1738251039795,-2347.907956,0.0002099,2]
[350963022,1738251039812,-557.401547,0.0002099,2]
[350963023,1738251039822,-269.300722,0.0002099,2]
[350963024,1738251039832,-151.0,0.0002099,2]
[350963025,1738251039842,-254.919403,0.0002099,2]
[350963026,1738251039852,-254.919403,0.0002099,2]
[350963027,1738251039864,-1116.3672546,0.00020991,2]
[350963028,1738251039876,-1190.2975605,0.00020991,2]
[350963029,1738251039886,-9556.9552972,0.00020991,2]
[350963030,1738251039897,-10189.8551115,0.00020991,2]
[350963031,1738251039907,-84304.08475966,0.00020999,5]
[350963032,1738251039917,-151.0,0.00020999,2]
[350963033,1738251039927,-151.0,0.00020999,2]
[350963034,1738251039939,-151.0,0.00020999,2]
[350963035,1738251039949,-265.544212,0.00020999,2]
[350963036,1738251039959,-265.544212,0.00020999,2]
[350963037,1738251039969,-381.02656,0.00020999,2]
[350963038,1738251039979,-381.02656,0.00020999,2]
[350963039,1738251039988,-151.0,0.00020999,2]
[350963040,1738251039998,-176.849198,0.00020999,2]
[350963041,1738251040008,-281.420331,0.00020999,2]
[350963042,1738251040018,-281.420331,0.00020999,2]
[350963043,1738251040028,-151.0,0.00020999,2]
[350963044,1738251040038,-204.642942,0.00020999,2]
[350963045,1738251040048,-151.0,0.00020999,2]
[350963046,1738251040058,-266.263987,0.00020999,2]
[350963048,1738251040069,-204.642942,0.00020999,2]
[350963051,1738251040079,-266.263987,0.00020999,2]
[350963054,1738251040089,-160.670865,0.00020999,2]
[350963056,1738251040099,-151.0,0.00020999,2]
[350963058,1738251040108,-492.45,0.00020999,2]
[350963060,1738251040118,-492.45,0.00020999,2]
[350963061,1738251040128,-199.278396,0.00020999,2]
[350963062,1738251040138,-179.834706,0.00020999,2]
[350963063,1738251040150,-179.834706,0.00020999,2]
[350963064,1738251040162,-689.704512,0.00020999,2]
[350963065,1738251040172,-151.0,0.00020999,2]
[350963066,1738251040183,-151.0,0.00020999,2]
[350963067,1738251040194,-151.0,0.00020999,2]
[350963068,1738251040203,-151.0,0.00020999,2]
[350963069,1738251040213,-151.0,0.00020999,2]
[350963071,1738251040222,-151.0,0.00020999,2]
[350963073,1738251040233,-151.0,0.00020999,2]
[350963075,1738251040243,-151.0,0.00020999,2]
[350963077,1738251040252,-462.25,0.00020999,2]
[350963080,1738251040265,-462.25,0.00020999,2]
[350963082,1738251040274,-222.89091992,0.00021,2]
[350963084,1738251040283,-150.0,0.00021,4]
[350963086,1738251040293,-2110.0,0.00021,2]
[350963088,1738251040302,-86502.25121569,0.00021,30]
[350963094,1738251040976,-2394.41796207,0.00021,30]
[350963095,1738251040989,-1398.57855192,0.00021,30]
[350963096,1738251041001,-9261.76,0.00021,30]
[350963097,1738251041037,-710.0,0.00020483,2]
[350963098,1738251041047,-287.86146249,0.00021,30]
[350963104,1738251042486,-529.47807039,0.00016,2]
[350963105,1738251042520,-682.008783,0.00016,2]
[350963106,1738251042539,-1360.01467635,0.00016,2]
[350963107,1738251042552,-150.0,0.0002043,2]
[350963108,1738251042570,-212.239583,0.0002095,2]
[350963109,1738251042584,-51458.19595304,0.00021,2]
[350963110,1738251042601,-149459.61197253,0.00021,2]
[350963111,1738251042695,-5331.32515683,0.00021,2]
[350963117,1738251043278,-1005.0,0.0002043,2]
[350963118,1738251043295,-679.01569,0.000206,2]
[350963119,1738251043309,-679.01569,0.0002095,2]
[350963120,1738251043325,-7178.86151339,0.00021,2]
[350963121,1738251043344,-3461.44359667,0.00021,2]
[350963122,1738251043362,-818.31750002,0.00021,2]
[350963123,1738251043380,-343.48470714,0.00021,2]
[350963124,1738251043491,-2456.71203232,0.00021,2]
[350963125,1738251043542,-4381.25527597,0.00021,2]
[350963126,1738251043559,-726.109324,0.00021,2]
[350963145,1738251045329,-679.01569,0.000206,2]
[350963147,1738251045648,-212.239583,0.0002095,2]
[350963151,1738251045680,-679.01569,0.0002095,2]
[350963152,1738251045697,-150.66997616,0.00021,2]
[350963153,1738251045756,-1574.844,0.00021,2]
[350963159,1738251046440,-9708.44859662,0.00021,2]
[350963160,1738251046452,-10321.5495383,0.00021,2]
[350963161,1738251046463,-24914.12685344,0.00021,2]
[350963162,1738251046473,-12762.91314656,0.00021,30]
[350963163,1738251046502,-106600.0,0.00021,30]
[350963164,1738251046514,-2833.24666807,0.00021,30]
[350963165,1738251046525,-5278.31376592,0.00021,30]
[350963166,1738251046571,-540.25766701,0.00021,30]
[350963167,1738251046582,-528.00862849,0.00021,30]
[350963168,1738251046636,-3281.68446837,0.00021,30]
[350963169,1738251046648,-1023.27499975,0.00021,30]
[350963170,1738251046698,-16002.40038566,0.00021,30]
[350963171,1738251046723,-13051.45287026,0.00021,30]
[350963172,1738251046735,-20873.54820774,0.00021,30]
[350963173,1738251046745,-469.0,0.00021,2]
[350963174,1738251046755,-2000.0,0.00021,2]
[350963175,1738251046764,-2008.4596,0.00021,2]
[350963177,1738251046774,-2000.0,0.00021,2]
[350963178,1738251046784,-2000.0,0.00021,2]
[350963179,1738251046794,-2000.0,0.00021,2]
[350963180,1738251046804,-2000.0,0.00021,2]
[350963181,1738251046813,-2000.0,0.00021,2]
[350963182,1738251046823,-2000.0,0.00021,2]
[350963183,1738251046833,-2000.0,0.00021,2]
[350963185,1738251046843,-840.99219226,0.00021,2]
[350963186,1738251046864,-323.31,0.00021,2]
[350963198,1738251092120,317.88336048,0.00023,120]
[350963199,1738251198452,10000.0,0.00013121,10]
[350963200,1738251229582,3401.0,0.00013121,10]
[350963201,1738251420872,160.51,0.00010137,2]
[350963214,1738252170143,164.72622648,0.00023,120]
[350963220,1738252231634,-442.79999998,0.00013,2]
[350963221,1738252231688,-107.20000002,0.00013,2]
[350963222,1738252231698,-150.0,0.000135,2]
[350963223,1738252231708,-150.0,0.000143,2]
[350963224,1738252231718,-150.0,0.000143,2]
[350963225,1738252231728,-150.0,0.000143,2]
[350963226,1738252231738,-150.0,0.000143,2]
[350963227,1738252231749,-600.0,0.00015,2]
[350963228,1738252231758,-650.0,0.00017,2]
[350963229,1738252231768,-483.0,0.00017,5]
[350963230,1738252231779,-519.34,0.00017292,2]
[350963231,1738252231790,-261.04,0.0001871,2]
[350963232,1738252231799,-300.0,0.00018716,2]
[350963233,1738252231809,-10172.92,0.00018717,2]
[350963234,1738252231820,-500.0,0.00019084,2]
[350963235,1738252231831,-500.0,0.00019146,2]
[350963236,1738252231845,-500.0,0.00019164,2]
[350963237,1738252231856,-150.54,0.00019178,2]
[350963238,1738252231867,-265.87,0.00019189,2]
[350963239,1738252231877,-2407.0,0.000194,2]
[350963240,1738252231889,-311.22,0.00019539,2]
[350963241,1738252231900,-663.87,0.00019546,30]
[350963242,1738252231910,-519.34,0.00019556,2]
[350963243,1738252231921,-184.26,0.00019569,2]
[350963244,1738252231932,-1000.0,0.00019616,2]
[350963245,1738252231942,-251.48325533,0.00019699,2]
[350963246,1738252231952,-167.65550356,0.00019699,2]
[350963247,1738252231962,-993.38,0.00019699,2]
[350963248,1738252231973,-298.24,0.00019699,2]
[350963249,1738252231985,-251.48325533,0.00019781,2]
[350963250,1738252231997,-167.65550356,0.00019781,2]
[350963251,1738252232006,-150.0,0.0001989,2]
[350963252,1738252232016,-251.48325533,0.0001989,2]
[350963253,1738252232026,-167.65550356,0.0001989,2]
[350963254,1738252232036,-1667.5233,0.000199,2]
[350963255,1738252232046,-669.5971,0.000199,2]
[350963256,1738252232056,-482.68638614,0.000199,2]
[350963257,1738252232066,-482.68638614,0.00019969,2]
[350963258,1738252232075,-251.48325533,0.00019973,2]
[350963259,1738252232086,-145.91461577,0.00019973,2]
[350963260,1738252232131,-21.74088779,0.00019973,2]
[350963261,1738252232141,-4318.44378973,0.0002,4]
[350963262,1738252232151,-7215.83549869,0.0002,2]
[350963263,1738252232164,-5284.15450131,0.0002,2]
[350963264,1738252232174,-9999.99,0.0002,2]
[350963265,1738252232184,-2622.97733219,0.0002,2]
[350963266,1738252232196,-650.8743883,0.0002,2]
[350963267,1738252232210,-6726.14827951,0.0002,2]
[350963268,1738252232220,-12500.0,0.0002,2]
[350963270,1738252232230,-12499.99,0.0002,2]
[350963272,1738252232240,-9999.99,0.0002,2]
[350963274,1738252232249,-9999.99,0.0002,2]
[350963276,1738252232259,-12500.0,0.0002,2]
[350963278,1738252232269,-10000.0,0.0002,2]
[350963280,1738252232280,-26134.77451024,0.0002,2]
[350963282,1738252232292,-583.80524636,0.0002,2]
[350963283,1738252232301,-2582.59,0.00020008,2]
[350963284,1738252232311,-482.68638614,0.00020038,2]
[350963285,1738252232321,-58.65573886,0.0002004,2]
[350963287,1738252232356,-2689.62241,0.0002004,2]
[350963292,1738252232392,-4840.5,0.0002004,2]
[350963295,1738252232423,-4911.22185114,0.0002004,2]
[350963296,1738252232433,-5423.40614886,0.0002004,2]
[350963299,1738252237446,-252.19,0.0002004,2]
[350963300,1738252237458,-320.90347742,0.0002004,2]
[350963301,1738252237470,-315.71896271,0.0002004,2]
[350963302,1738252237591,-1525.18868393,0.0002004,2]
[350963303,1738252237606,-4662.59272708,0.0002004,2]
[350963304,1738252237617,-2500.0,0.00020065,2]
[350963305,1738252237626,-8521.01122292,0.0002008,2]
[350963306,1738252237660,-3978.98877708,0.0002008,2]
[350963307,1738252237669,-12500.0,0.0002008,2]
[350963308,1738252237680,-251.48325533,0.00020082,2]
[350963309,1738252237691,-167.65550356,0.00020082,2]
[350963310,1738252237701,-6258.1961,0.000201,2]
[350963311,1738252237711,-10081.94218427,0.00020104,2]
[350963312,1738252237723,-10916.07781573,0.00020104,2]
[350963313,1738252237733,-10000.0,0.00020107,2]
[350963314,1738252237742,-482.68638614,0.00020107,2]
[350963315,1738252237752,-2543.54,0.00020117,2]
[350963317,1738252237762,-12500.0,0.0002012,2]
[350963319,1738252237773,-463.27,0.00020124,2]
[350963322,1738252237784,-265.87,0.00020149,2]
[350963324,1738252237794,-25000.0,0.00020152,2]
[350963326,1738252237805,-12500.0,0.0002016,2]
[350963327,1738252237815,-1193.832,0.00020164,2]
[350963328,1738252237825,-251.48325533,0.00020164,2]
[350963329,1738252237835,-167.65550356,0.00020164,2]
[350963330,1738252237845,-482.68638614,0.00020176,2]
[350963331,1738252237855,-12500.0,0.000202,2]
[350963332,1738252237865,-266.2852,0.000202,2]
[350963333,1738252237875,-318.35774728,0.00020201,2]
[350963334,1738252237885,-10000.0,0.00020213,2]
[350963335,1738252237895,-7358.9,0.0002024,2]
[350963336,1738252237904,-482.68638614,0.00020245,2]
[350963337,1738252237914,-251.48325533,0.00020274,2]
[350963338,1738252237924,-167.65550356,0.00020274,2]
[350963340,1738252237934,-184.26,0.00020293,2]
[350963342,1738252237945,-3000.0,0.00020299,4]
[350963344,1738252237955,-36903.68145065,0.000203,30]
[350963346,1738252237968,-5681.30705885,0.000203,30]
[350963537,1738252240064,-1215.03383588,0.000203,30]
[350963538,1738252240076,-1942.37721319,0.000203,30]
[350963539,1738252240122,-49348.04044143,0.000203,30]
[350963540,1738252240133,-500.0,0.00020301,4]
[350963541,1738252240143,-482.68638614,0.00020314,2]
[350963542,1738252240154,-10000.0,0.0002032,2]
[350963543,1738252240164,-251.48325533,0.00020356,2]
[350963544,1738252240174,-167.65550356,0.00020356,2]
[350963545,1738252240186,-2500.0,0.00020382,2]
[350963546,1738252240196,-482.68638614,0.00020383,2]
[350963547,1738252240206,-420.0,0.00020407,2]
[350963548,1738252240217,-6283.39,0.00020427,2]
[350963549,1738252240227,-2500.0,0.00020443,2]
[350963550,1738252240237,-500.0,0.00020446,2]
[350963551,1738252240248,-482.68638614,0.00020452,2]
[350963552,1738252240257,-1271.0,0.0002046,2]
[350963554,1738252240267,-2021.0,0.0002046,2]
[350963555,1738252240278,-637.0,0.0002046,2]
[350963557,1738252240293,-150.0,0.0002046,2]
[350963560,1738252240303,-568.0,0.0002046,2]
[350963562,1738252240313,-1866.0,0.0002046,2]
[350963564,1738252240323,-782.0,0.0002046,2]
[350963566,1738252240334,-907.0,0.0002046,2]
[350963568,1738252240344,-1262.0,0.0002046,2]
[350963570,1738252240354,-2950.0,0.0002046,2]
[350963572,1738252240363,-1322.0,0.0002046,2]
[350963574,1738252240373,-543.884,0.0002046,2]
[350963576,1738252240383,-151.099,0.0002046,2]
[350963578,1738252240393,-1005.0,0.0002046,2]
[350963580,1738252240403,-3906.0,0.0002046,2]
[350963582,1738252240413,-150.0,0.0002046,2]
[350963583,1738252240423,-1107.0,0.0002046,2]
[350963584,1738252240433,-251.48325533,0.00020466,2]
[350963585,1738252240444,-167.65550356,0.00020466,2]
[350963586,1738252240453,-3000.0,0.000205,2]
[350963587,1738252240463,-2110.0,0.000205,2]
[350963588,1738252240473,-200.91,0.00020511,2]
[350963589,1738252240483,-482.68638614,0.00020521,2]
[350963590,1738252240493,-265.0,0.0002053,4]
[350963591,1738252240503,-168.02,0.0002054,2]
[350963592,1738252240513,-251.48325533,0.00020548,2]
[350963593,1738252240523,-167.65550356,0.00020548,2]
[350963594,1738252240533,-786.92048525,0.00020573,4]
[350963595,1738252240550,-482.68638614,0.0002059,2]
[350963596,1738252240564,-151.0,0.000206,2]
[350963597,1738252240573,-151.0,0.000206,2]
[350963598,1738252240583,-655.219287,0.000206,2]
[350963599,1738252240594,-151.0,0.000206,2]
[350963600,1738252240605,-655.219287,0.000206,2]
[350963601,1738252240615,-151.0,0.000206,2]
[350963602,1738252240625,-151.0,0.000206,2]
[350963603,1738252240635,-151.0,0.000206,2]
[350963604,1738252240645,-151.0,0.000206,2]
[350963605,1738252240655,-266.718592,0.000206,2]
[350963606,1738252240665,-266.718592,0.000206,2]
[350963607,1738252240675,-1000.0,0.000206,2]
[350963608,1738252240684,-1000.0,0.000206,2]
[350963609,1738252240695,-606.0332,0.000206,2]
[350963610,1738252240705,-366.0,0.000206,2]
[350963611,1738252240715,-231.0,0.000206,2]
[350963612,1738252240725,-2539.2,0.00020614,2]
[350963613,1738252240735,-251.48325533,0.00020658,2]
[350963614,1738252240744,-167.65550356,0.00020658,2]
[350963615,1738252240755,-482.68638614,0.00020659,2]
[350963616,1738252240765,-150.0,0.000207,2]
[350963617,1738252240775,-150.0,0.000207,2]
[350963618,1738252240785,-150.0,0.000207,2]
[350963619,1738252240798,-150.0,0.000207,2]
[350963620,1738252240809,-112139.49360126,0.000207,2]
[350963621,1738252240819,-11306.15067396,0.000207,2]
[350963622,1738252240829,-735.05259918,0.000207,2]
[350963623,1738252240839,-5501.87465387,0.000207,2]
[350963624,1738252240850,-900.0,0.000207,2]
[350963625,1738252240860,-900.0,0.000207,2]
[350963626,1738252240870,-900.0,0.000207,2]
[350963627,1738252240880,-900.0,0.000207,2]
[350963628,1738252240890,-900.0,0.000207,2]
[350963629,1738252240901,-824.68308167,0.000207,2]
[350963630,1738252240911,-150.0,0.000207,2]
[350963631,1738252240921,-8026.79991329,0.000207,2]
[350963632,1738252240931,-900.0,0.000207,2]
[350963633,1738252240941,-900.0,0.000207,2]
[350963634,1738252240951,-900.0,0.000207,2]
[350963635,1738252240960,-900.0,0.000207,2]
[350963636,1738252240971,-900.0,0.000207,2]
[350963637,1738252240981,-900.0,0.000207,2]
[350963638,1738252240991,-900.0,0.000207,2]
[350963639,1738252241002,-900.0,0.000207,2]
[350963640,1738252241012,-900.0,0.000207,2]
[350963641,1738252241022,-900.0,0.000207,2]
[350963642,1738252241032,-482.68638614,0.00020728,2]
[350963643,1738252241046,-150.0,0.00020735,2]
[350963644,1738252241056,-251.48325533,0.0002074,2]
[350963645,1738252241066,-167.65550356,0.0002074,2]
[350963646,1738252241076,-150.0,0.00020776,2]
[350963647,1738252241085,-150.54,0.00020776,2]
[350963648,1738252241094,-150.0,0.00020779,2]
[350963649,1738252241105,-482.68638614,0.00020797,2]
[350963650,1738252241116,-25000.0,0.000208,2]
[350963651,1738252241127,-150.0,0.00020812,2]
[350963652,1738252241138,-500.0,0.00020832,2]
[350963653,1738252241148,-150.0,0.00020834,2]
[350963654,1738252241159,-300.0,0.00020849,2]
[350963655,1738252241171,-876.32,0.00020849,2]
[350963656,1738252241182,-300.0,0.00020849,2]
[350963657,1738252241192,-1966.58,0.00020849,2]
[350963658,1738252241202,-298.38,0.00020849,2]
[350963659,1738252241212,-300.0,0.00020849,2]
[350963660,1738252241223,-150.0,0.00020849,2]
[350963661,1738252241234,-150.0,0.00020849,2]
[350963662,1738252241244,-438.07,0.00020849,2]
[350963663,1738252241254,-150.0,0.00020849,2]
[350963664,1738252241268,-1874.0,0.00020862,2]
[350963665,1738252241295,-482.68638614,0.00020866,2]
[350963666,1738252241305,-150.0,0.00020875,2]
[350963667,1738252241315,-266.41481276,0.0002088,2]
[350963668,1738252241325,-1000.0,0.00020891,2]
[350963669,1738252241335,-2500.0,0.00020896,2]
[350963670,1738252241344,-540.83510994,0.000209,2]
[350963671,1738252241353,-518.7289,0.000209,2]
[350963672,1738252241363,-5609.1209,0.000209,2]
[350963673,1738252241373,-158.39197373,0.000209,2]
[350963674,1738252241383,-5000.0,0.000209,2]
[350963675,1738252241393,-161.80746258,0.000209,2]
[350963676,1738252241403,-180.62001871,0.000209,2]
[350963677,1738252241415,-8649.0334162,0.000209,2]
[350963678,1738252241424,-150.0,0.0002093,2]
[350963679,1738252241435,-1000.0,0.00020931,2]
[350963680,1738252241445,-482.68638614,0.00020934,2]
[350963681,1738252241454,-150.0,0.00020941,2]
[350963682,1738252241464,-8649.03341616,0.00020941,2]
[350963683,1738252241474,-151.0,0.0002095,2]
[350963684,1738252241483,-655.219287,0.0002095,2]
[350963685,1738252241493,-151.0,0.0002095,2]
[350963686,1738252241503,-655.219287,0.0002095,2]
[350963687,1738252241513,-151.0,0.0002095,2]
[350963688,1738252241523,-151.0,0.0002095,2]
[350963689,1738252241533,-151.0,0.0002095,2]
[350963690,1738252241545,-221.20878,0.0002095,2]
[350963691,1738252241556,-266.718592,0.0002095,2]
[350963692,1738252241567,-266.718592,0.0002095,2]
[350963693,1738252241577,-1930.48350202,0.00020955,2]
[350963694,1738252241587,-160.34999232,0.00020955,2]
[350963695,1738252241599,-158.39197371,0.00020962,2]
[350963696,1738252241609,-164.78843306,0.00020973,2]
[350963697,1738252241619,-500.0,0.00020973,2]
[350963698,1738252241629,-160.1596597,0.00020973,2]
[350963699,1738252241638,-152.95750977,0.00020973,2]
[350963700,1738252241647,-500.0,0.00020973,2]
[350963701,1738252241658,-8649.03341616,0.00020982,2]
[350963702,1738252241668,-150.0,0.00020986,4]
[350963703,1738252241678,-150.0,0.00020986,4]
[350963704,1738252241688,-150.0,0.00020986,4]
[350963705,1738252241698,-50057.0,0.00020986,2]
[350963706,1738252241708,-4748.7663345,0.00020989,2]
[350963707,1738252241719,-760.15027472,0.00020989,2]
[350963708,1738252241729,-969.2009266,0.00020989,2]
[350963709,1738252241740,-210.4496657,0.00020989,2]
[350963710,1738252241751,-6657.4080407,0.00020989,2]
[350963711,1738252241763,-654.11788642,0.00020989,2]
[350963712,1738252241776,-161.80746258,0.00020992,2]
[350963713,1738252241788,-2522.76,0.00020995,2]
[350963714,1738252241799,-999.0,0.00020999,2]
[350963715,1738252241808,-222.89091991,0.00021,2]
[350963716,1738252241818,-221969.73449405,0.00021,2]
[350963717,1738252241827,-2000.0,0.00021,2]
[350963718,1738252241837,-691586.77505017,0.00021,60]
[350963719,1738252241846,-50000.0,0.00021,4]
[350963720,1738252241857,-30000.0,0.00021,10]
[350963721,1738252241867,-32577.79813779,0.00021,10]
[350963722,1738252241877,-30000.0,0.00021,10]
[350963723,1738252241888,-630.0,0.00021,2]
[350963724,1738252241897,-600.0,0.00021,3]
[350963725,1738252241907,-6100.97699547,0.00021,2]
[350963726,1738252241917,-500.0,0.00021,60]
[350963727,1738252241928,-500.0,0.00021,60]
[350963728,1738252241939,-500.0,0.00021,60]
[350963729,1738252241949,-500.0,0.00021,2]
[350963730,1738252241958,-151.0,0.00021,2]
[350963731,1738252241968,-151.0,0.00021,2]
[350963732,1738252241978,-151.0,0.00021,2]
[350963733,1738252241988,-151.0,0.00021,2]
[350963734,1738252241998,-151.0,0.00021,2]
[350963735,1738252242008,-462.25,0.00021,2]
[350963736,1738252242018,-462.25,0.00021,2]
[350963737,1738252242028,-462.25,0.00021,2]
[350963738,1738252242038,-462.25,0.00021,2]
[350963739,1738252242050,-462.25,0.00021,2]
[350963740,1738252242059,-462.25,0.00021,2]
[350963741,1738252242069,-462.25,0.00021,2]
[350963742,1738252242080,-462.25,0.00021,2]
[350963743,1738252242090,-151.0,0.00021,2]
[350963744,1738252242100,-151.0,0.00021,2]
[350963745,1738252242110,-151.0,0.00021,2]
[350963746,1738252242120,-151.0,0.00021,2]
[350963747,1738252242129,-173.431729,0.00021,2]
[350963748,1738252242139,-215.631777,0.00021,2]
[350963749,1738252242149,-215.631777,0.00021,2]
[350963750,1738252242159,-215.631777,0.00021,2]
[350963751,1738252242169,-215.631777,0.00021,2]
[350963752,1738252242179,-215.631777,0.00021,2]
[350963753,1738252242189,-215.631777,0.00021,2]
[350963754,1738252242199,-215.631777,0.00021,2]
[350963755,1738252242209,-215.631777,0.00021,2]
[350963756,1738252242218,-475.619296,0.00021,2]
[350963757,1738252242228,-475.619296,0.00021,2]
[350963758,1738252242237,-475.619296,0.00021,2]
[350963759,1738252242247,-475.619296,0.00021,2]
[350963760,1738252242257,-475.619296,0.00021,2]
[350963761,1738252242267,-475.619296,0.00021,2]
[350963762,1738252242277,-475.619296,0.00021,2]
[350963763,1738252242287,-475.619296,0.00021,2]
[350963764,1738252242298,-151.0,0.00021,2]
[350963765,1738252242308,-151.0,0.00021,2]
[350963766,1738252242318,-151.0,0.00021,2]
[350963767,1738252242328,-151.0,0.00021,2]
[350963768,1738252242337,-151.0,0.00021,2]
[350963769,1738252242347,-151.0,0.00021,2]
[350963770,1738252242356,-151.0,0.00021,2]
[350963772,1738252242366,-151.0,0.00021,2]
[350963775,1738252242376,-151.0,0.00021,2]
[350963777,1738252242385,-200.242282,0.00021,2]
[350963778,1738252242395,-151.0,0.00021,2]
[350963779,1738252242405,-151.0,0.00021,2]
[350963780,1738252242414,-151.0,0.00021,2]
[350963781,1738252242424,-222.495758,0.00021,2]
[350963782,1738252242433,-222.495758,0.00021,2]
[350963783,1738252242442,-222.495758,0.00021,2]
[350963784,1738252242452,-222.495758,0.00021,2]
[350963785,1738252242461,-222.495758,0.00021,2]
[350963786,1738252242471,-222.495758,0.00021,2]
[350963787,1738252242480,-151.0,0.00021,2]
[350963790,1738252242490,-151.0,0.00021,2]
[350963793,1738252242500,-151.0,0.00021,2]